{"text_format":"1","workbook":"xlsx","n_sheets":3,"sheets":["мачт 001-002","Текст_базы","БазаМЗ"],"not_rendered":{"charts":0,"images":0,"macros":0,"external_links":0,"defined_names":85,"comments":0,"pivot_tables":0},"unopened":[],"bounds":{"document_bytes":16777216,"sheet_cells":100000,"rows_first":2000,"rows_last":500,"rows_between":2000,"halvings":0,"cell_chars":16384,"cell_head_chars":4096},"cells_cut":0,"cells_raw":0,"read":"whole","date_system":"1900"}

{"sheet":"мачт 001-002","index":0,"n_rows":22,"n_cols":5,"rows_kept":22,"cut":false,"hidden":false,"merged":[]}
[{"$f":"CONCATENATE(\"Параметр растеча \",RIGHT(CELL(\"имяфайла\"),LEN(CELL(\"имяфайла\"))-FIND(\"]\",CELL(\"имяфайла\"))))","v":"Параметр растеча БазаМЗ"},"Значение",null,null,"Вводные данные для ACAD"]
["Тип молниеприемника","1_стержень",null,null,{"$f":"INDEX(БазаМЗ!T2:U5,MATCH(B2,БазаМЗ!U2:U5,0),1)","v":"_ЭОМ_МЗ_1стержень_3D_ПоРасчету"}]
["Надежность защиты (Рз)",0.99]
[{"$f":"CONCATENATE(\"Диапазон высот молниеприемника\",IF(B2=\"1_стержень\",,\" №1\"),\", [м]\")","v":"Диапазон высот молниеприемника, [м]"},"от 0 до 30",null,null,{"$f":"IF(B11=\"!\",\"Исправить диапазон высот м.п.\",\"\")","v":""}]
[{"$f":"IF(B2=\"1_стержень\",\"\",\"Диапазон высот молниеприемника №2, [м]\")","v":""},"от 0 до 30",null,null,{"$f":"IF(B12=\"!\",\"Исправить диапазон высот м.п.\",\"\")","v":""}]
[{"$f":"CONCATENATE(\"Высота молниеприемника\",IF(B2=\"1_стержень\",\" h\",\" №1 h1\"),\", [м]\")","v":"Высота молниеприемника h, [м]"},10,null,null,{"$f":"CONCATENATE(IF(B2=\"1_стержень\",\"h\",\"h_1\"),\"  \",IF(AND(B6>=LEFT(SUBSTITUTE(B4,\"от \",\"\"),FIND(\" \",SUBSTITUTE(B4,\"от \",\"\"))-1)+1,B6<=VALUE(RIGHT(B4,LEN(B4)-FIND(\"д\",B4)-2))),\"\",\"Исправить высоту\"))","v":"h  "}]
[{"$f":"IF(B2=\"1_стержень\",\"\",\"Высота молниеприемника №2 h2, [м]\")","v":""},12,null,null,{"$f":"CONCATENATE(IF(B2=\"1_стержень\",,\"h_2\"),\"  \",IF(AND(B7>=LEFT(SUBSTITUTE(B5,\"от \",\"\"),FIND(\" \",SUBSTITUTE(B5,\"от \",\"\"))-1)+1,B7<=VALUE(RIGHT(B5,LEN(B5)-FIND(\"д\",B5)-2))),\"\",\"Исправить высоту\"))","v":"  "}]
[{"$f":"IF(OR(B2=\"2_стержня\",B2=\"2_троса\"),\"Расстояние между стержнями/тросами L, [м]\",\"\")","v":""},32,null,null,{"$f":"IF(OR(B2=\"2_стержня\",B2=\"2_троса\"),\"L\",\"\")","v":""}]
[{"$f":"IF(OR(B2=\"2_стержня\",B2=\"2_троса\"),\"Провисание зоны защиты №1, [м]\",\"\")","v":""},{"$f":"IF(A10=\"\",\"\",IF(B8<=B20,\"Нет\",IF(AND(B8>B20,B8<B19),\"Есть\",\"Как одиночный\")))","v":""},null,null,{"$f":"IF(B9=\"Как одиночный\",\"Уменьшить L или использовать одиночный м.п.\",\"\")","v":""}]
[{"$f":"IF(OR(B2=\"2_стержня\",B2=\"2_троса\"),\"Провисание зоны защиты №2, [м]\",\"\")","v":""},{"$f":"IF(A10=\"\",\"\",IF(B8<=B22,\"Нет\",IF(AND(B8>B22,B8<B21),\"Есть\",\"Как одиночный\")))","v":""},null,null,{"$f":"IF(B10=\"Как одиночный\",\"Уменьшить L или использовать одиночный м.п.\",\"\")","v":""}]
[{"$f":"IF(B2=\"1_стержень\",\"Высота конуса h0, [м]\",\"Высота конуса h01, [м]\")","v":"Высота конуса h0, [м]"},{"$f":"IFERROR(ФОРМУЛА,\"!\")","v":0.79200000000000004},{"$f":"SUBSTITUTE(INDEX(БазаМЗ!$G$4:$K$43,MATCH(CONCATENATE(\"_\",$B$2,\"_\",SUBSTITUTE($B$3,\",\",\"\"),\"_\",SUBSTITUTE(B4,\" \",\"_\")),БазаМЗ!$G$4:$G$43,0),2),\"h1\",CONCATENATE(\"'\",RIGHT(CELL(\"имяфайла\"),LEN(CELL(\"имяфайла\"))-FIND(\"]\",CELL(\"имяфайла\"))),\"'!$B$6\"))","v":"'БазаМЗ'!$B$6*0,8"},"ИНДЕКС(БазаМЗ!$G$4:$K$43;ПОИСКПОЗ(СЦЕПИТЬ(\"_\";$B$2;\"_\";ПОДСТАВИТЬ($B$3;\",\";\"\");\"_\";ПОДСТАВИТЬ(B4;\" \";\"_\"));БазаМЗ!$G$4:$G$43;0);2);\"h1\";СЦЕПИТЬ(ПРАВСИМВ(ЯЧЕЙКА(\"имяфайла\");ДЛСТР(ЯЧЕЙКА(\"имяфайла\"))-НАЙТИ(\"]\";ЯЧЕЙКА(\"имяфайла\")));\"!$B$6\"))",{"$f":"IF(B2=\"1_стержень\",\"h_0\",\"h_01\")","v":"h_0"}]
[{"$f":"IF(B2=\"1_стержень\",\"\",\"Высота конуса h02, [м]\")","v":""},{"$f":"IFERROR(IF(A12=\"\",\"\",ФОРМУЛА),\"!\")","v":""},{"$f":"SUBSTITUTE(INDEX(БазаМЗ!$G$48:$K$87,MATCH(CONCATENATE(\"_\",$B$2,\"_\",SUBSTITUTE($B$3,\",\",\"\"),\"_\",SUBSTITUTE(B5,\" \",\"_\")),БазаМЗ!$G$4:$G$43,0),2),\"h2\",CONCATENATE(\"'\",RIGHT(CELL(\"имяфайла\"),LEN(CELL(\"имяфайла\"))-FIND(\"]\",CELL(\"имяфайла\"))),\"'!$B$7\"))","v":"'БазаМЗ'!$B$7*0,8"},"ИНДЕКС(БазаМЗ!$G$48:$K$87;ПОИСКПОЗ(СЦЕПИТЬ(\"_\";$B$2;\"_\";ПОДСТАВИТЬ($B$3;\",\";\"\");\"_\";ПОДСТАВИТЬ(B5;\" \";\"_\"));БазаМЗ!$G$4:$G$43;0);2);\"h2\";СЦЕПИТЬ(ПРАВСИМВ(ЯЧЕЙКА(\"имяфайла\");ДЛСТР(ЯЧЕЙКА(\"имяфайла\"))-НАЙТИ(\"]\";ЯЧЕЙКА(\"имяфайла\")));\"!$B$7\"))",{"$f":"IF(B2=\"1_стержень\",\"\",\"h_02\")","v":""}]
[{"$f":"IF(B2=\"1_стержень\",\"Радиус конуса r0, [м]\",\"Радиус конуса r01, [м]\")","v":"Радиус конуса r0, [м]"},{"$f":"IFERROR(ФОРМУЛА,\"!\")","v":0.79200000000000004},{"$f":"SUBSTITUTE(INDEX(БазаМЗ!$G$4:$K$43,MATCH(CONCATENATE(\"_\",$B$2,\"_\",SUBSTITUTE($B$3,\",\",\"\"),\"_\",SUBSTITUTE(B4,\" \",\"_\")),БазаМЗ!$G$4:$G$43,0),3),\"h1\",CONCATENATE(\"'\",RIGHT(CELL(\"имяфайла\"),LEN(CELL(\"имяфайла\"))-FIND(\"]\",CELL(\"имяфайла\"))),\"'!$B$6\"))","v":"0,8*'БазаМЗ'!$B$6"},"ИНДЕКС(БазаМЗ!$G$4:$K$43;ПОИСКПОЗ(СЦЕПИТЬ(\"_\";$B$2;\"_\";ПОДСТАВИТЬ($B$3;\",\";\"\");\"_\";ПОДСТАВИТЬ(B4;\" \";\"_\"));БазаМЗ!$G$4:$G$43;0);3);\"h1\";СЦЕПИТЬ(ПРАВСИМВ(ЯЧЕЙКА(\"имяфайла\");ДЛСТР(ЯЧЕЙКА(\"имяфайла\"))-НАЙТИ(\"]\";ЯЧЕЙКА(\"имяфайла\")));\"!$B$6\"))",{"$f":"IF(B2=\"1_стержень\",\"r_0\",\"r_01\")","v":"r_0"}]
[{"$f":"IF(B2=\"1_стержень\",\"\",\"Радиус конуса r02, [м]\")","v":""},{"$f":"IFERROR(IF(A14=\"\",\"\",ФОРМУЛА),\"!\")","v":""},{"$f":"SUBSTITUTE(INDEX(БазаМЗ!$G$48:$K$87,MATCH(CONCATENATE(\"_\",$B$2,\"_\",SUBSTITUTE($B$3,\",\",\"\"),\"_\",SUBSTITUTE(B5,\" \",\"_\")),БазаМЗ!$G$48:$G$87,0),3),\"h2\",CONCATENATE(\"'\",RIGHT(CELL(\"имяфайла\"),LEN(CELL(\"имяфайла\"))-FIND(\"]\",CELL(\"имяфайла\"))),\"'!$B$7\"))","v":"0,8*'БазаМЗ'!$B$7"},"ИНДЕКС(БазаМЗ!$G$48:$K$87;ПОИСКПОЗ(СЦЕПИТЬ(\"_\";$B$2;\"_\";ПОДСТАВИТЬ($B$3;\",\";\"\");\"_\";ПОДСТАВИТЬ(B5;\" \";\"_\"));БазаМЗ!$G$48:$G$87;0);3);\"h2\";СЦЕПИТЬ(ПРАВСИМВ(ЯЧЕЙКА(\"имяфайла\");ДЛСТР(ЯЧЕЙКА(\"имяфайла\"))-НАЙТИ(\"]\";ЯЧЕЙКА(\"имяфайла\")));\"!$B$7\"))",{"$f":"IF(B2=\"1_стержень\",\"\",\"r_02\")","v":""}]
[{"$f":"IF(OR(B2=\"2_стержня\",B2=\"2_троса\"),\"Радиус конуса rс, [м]\",\"\")","v":""},{"$f":"IFERROR(IF(OR(B2=\"2_стержня\",B2=\"2_троса\"),(B13+B14)/2,\"\"),\"!\")","v":""},null,null,{"$f":"IF(OR(B2=\"2_стержня\",B2=\"2_троса\"),\"r_с\",\"\")","v":""}]
[{"$f":"IF(OR(B2=\"2_стержня\",B2=\"2_троса\"),\"Высота провисания зоны защиты hc1 , [м]\",\"\")","v":""},{"$f":"IFERROR(IF(A16=\"\",\"\",IF(OR(B9=\"Как одиночный\",B10=\"Как одиночный\"),\"\",IF(B9=\"Нет\",B11,IF(B9=\"Есть\",((B19-B8)/(B19-B20))*B11,\"Нет\")))),\"!\")","v":""}]
[{"$f":"IF(OR(B2=\"2_стержня\",B2=\"2_троса\"),\"Высота провисания зоны защиты hc2 , [м]\",\"\")","v":""},{"$f":"IFERROR(IF(A17=\"\",\"\",IF(OR(B9=\"Как одиночный\",B10=\"Как одиночный\"),\"\",IF(B10=\"Нет\",B12,IF(B10=\"Есть\",((B21-B8)/(B21-B22))*B12,\"Нет\")))),\"!\")","v":""}]
[{"$f":"IF(OR(B2=\"2_стержня\",B2=\"2_троса\"),\"Высота провисания зоны защиты hc , [м]\",\"\")","v":""},{"$f":"IFERROR(IF(B17=\"\",\"\",(B16+B17)/2),\"!\")","v":""},null,null,{"$f":"IF(OR(B2=\"2_стержня\",B2=\"2_троса\"),\"h_с\",\"\")","v":""}]
[{"$f":"IF(OR(B2=\"2_стержня\",B2=\"2_троса\"),\"Максимальное расстояние м/у стержнями/тросами \nс провисанием зоны защиты L1max, [м]\",\"\")","v":""},{"$f":"IFERROR(IF(A19=\"\",\"\",ФОРМУЛА),\"!\")","v":""},{"$f":"SUBSTITUTE(INDEX(БазаМЗ!$G$4:$K$43,MATCH(CONCATENATE(\"_\",$B$2,\"_\",SUBSTITUTE($B$3,\",\",\"\"),\"_\",SUBSTITUTE(B4,\" \",\"_\")),БазаМЗ!$G$4:$G$43,0),4),\"h1\",CONCATENATE(\"'\",RIGHT(CELL(\"имяфайла\"),LEN(CELL(\"имяфайла\"))-FIND(\"]\",CELL(\"имяфайла\"))),\"'!$B$6\"))","v":""},"ИНДЕКС(БазаМЗ!$G$4:$K$43;ПОИСКПОЗ(СЦЕПИТЬ(\"_\";$B$2;\"_\";ПОДСТАВИТЬ($B$3;\",\";\"\");\"_\";ПОДСТАВИТЬ(B4;\" \";\"_\"));БазаМЗ!$G$4:$G$43;0);4);\"h1\";СЦЕПИТЬ(ПРАВСИМВ(ЯЧЕЙКА(\"имяфайла\");ДЛСТР(ЯЧЕЙКА(\"имяфайла\"))-НАЙТИ(\"]\";ЯЧЕЙКА(\"имяфайла\")));\"!$B$6\"))"]
[{"$f":"IF(OR(B2=\"2_стержня\",B2=\"2_троса\"),\"Минимальное расстояние м/у стержнями/тросами \nс провисанием зоны защиты L1c, [м]\",\"\")","v":""},{"$f":"IFERROR(IF(A20=\"\",\"\",ФОРМУЛА),\"!\")","v":""},{"$f":"SUBSTITUTE(INDEX(БазаМЗ!$G$4:$K$43,MATCH(CONCATENATE(\"_\",$B$2,\"_\",SUBSTITUTE($B$3,\",\",\"\"),\"_\",SUBSTITUTE(B4,\" \",\"_\")),БазаМЗ!$G$4:$G$43,0),5),\"h1\",CONCATENATE(\"'\",RIGHT(CELL(\"имяфайла\"),LEN(CELL(\"имяфайла\"))-FIND(\"]\",CELL(\"имяфайла\"))),\"'!$B$6\"))","v":""},"ИНДЕКС(БазаМЗ!$G$4:$K$43;ПОИСКПОЗ(СЦЕПИТЬ(\"_\";$B$2;\"_\";ПОДСТАВИТЬ($B$3;\",\";\"\");\"_\";ПОДСТАВИТЬ(B4;\" \";\"_\"));БазаМЗ!$G$4:$G$43;0);5);\"h1\";СЦЕПИТЬ(ПРАВСИМВ(ЯЧЕЙКА(\"имяфайла\");ДЛСТР(ЯЧЕЙКА(\"имяфайла\"))-НАЙТИ(\"]\";ЯЧЕЙКА(\"имяфайла\")));\"!$B$7\"))"]
[{"$f":"IF(OR(B2=\"2_стержня\",B2=\"2_троса\"),\"Максимальное расстояние м/у стержнями/тросами \nс провисанием зоны защиты L2max, [м]\",\"\")","v":""},{"$f":"IFERROR(IF(A21=\"\",\"\",ФОРМУЛА),\"!\")","v":""},{"$f":"SUBSTITUTE(INDEX(БазаМЗ!$G$48:$K$87,MATCH(CONCATENATE(\"_\",$B$2,\"_\",SUBSTITUTE($B$3,\",\",\"\"),\"_\",SUBSTITUTE(B5,\" \",\"_\")),БазаМЗ!$G$48:$G$87,0),4),\"h2\",CONCATENATE(\"'\",RIGHT(CELL(\"имяфайла\"),LEN(CELL(\"имяфайла\"))-FIND(\"]\",CELL(\"имяфайла\"))),\"'!$B$7\"))","v":""},"ИНДЕКС(БазаМЗ!$G$48:$K$87;ПОИСКПОЗ(СЦЕПИТЬ(\"_\";$B$2;\"_\";ПОДСТАВИТЬ($B$3;\",\";\"\");\"_\";ПОДСТАВИТЬ(B5;\" \";\"_\"));БазаМЗ!$G$48:$G$87;0);4);\"h2\";СЦЕПИТЬ(ПРАВСИМВ(ЯЧЕЙКА(\"имяфайла\");ДЛСТР(ЯЧЕЙКА(\"имяфайла\"))-НАЙТИ(\"]\";ЯЧЕЙКА(\"имяфайла\")));\"!$B$6\"))"]
[{"$f":"IF(OR(B2=\"2_стержня\",B2=\"2_троса\"),\"Минимальное расстояние м/у стержнями/тросами \nс провисанием зоны защиты L2c, [м]\",\"\")","v":""},{"$f":"IFERROR(IF(A22=\"\",\"\",ФОРМУЛА),\"!\")","v":""},{"$f":"SUBSTITUTE(INDEX(БазаМЗ!$G$48:$K$87,MATCH(CONCATENATE(\"_\",$B$2,\"_\",SUBSTITUTE($B$3,\",\",\"\"),\"_\",SUBSTITUTE(B5,\" \",\"_\")),БазаМЗ!$G$48:$G$87,0),5),\"h2\",CONCATENATE(\"'\",RIGHT(CELL(\"имяфайла\"),LEN(CELL(\"имяфайла\"))-FIND(\"]\",CELL(\"имяфайла\"))),\"'!$B$7\"))","v":""},"ИНДЕКС(БазаМЗ!$G$48:$K$87;ПОИСКПОЗ(СЦЕПИТЬ(\"_\";$B$2;\"_\";ПОДСТАВИТЬ($B$3;\",\";\"\");\"_\";ПОДСТАВИТЬ(B4;\" \";\"_\"));БазаМЗ!$G$48:$G$87;0);5);\"h2\";СЦЕПИТЬ(ПРАВСИМВ(ЯЧЕЙКА(\"имяфайла\");ДЛСТР(ЯЧЕЙКА(\"имяфайла\"))-НАЙТИ(\"]\";ЯЧЕЙКА(\"имяфайла\")));\"!$B$7\"))"]

{"sheet":"Текст_базы","index":1,"n_rows":150,"n_cols":22,"rows_kept":150,"cut":false,"hidden":true,"merged":[[27,3,29,3],[30,3,32,3],[37,3,39,3],[40,3,42,3],[3,3,4,3],[5,3,7,3],[8,3,10,3],[14,3,16,3],[17,3,19,3],[20,3,22,3]]}
[null,"1_стержень",null,null,null,null,null,null,null,null,null,null,null,null,null,null,null,null,"Вид защиты","Рз","_1_стержень_09_от_0_до_100",1]
[null,"Надежность защиты Pз","Высота молниеотвода h, м",null,null,"Высота конуса h0, м","Радиус конуса r0, м",null,null,null,null,null,null,null,null,null,null,null,"1_стержень",0.9,"_1_стержень_09_от_100_до_150",2]
[null,"Рз_надежность","h_высота_м",null,null,null,null,null,null,null,null,null,null,null,null,null,null,null,"1_трос",0.99,"_1_стержень_099_от_0_до_30",3]
["1_стержень",0.9,"от 0 до 100","_1_стержень_09","_1_стержень_09_от_0_до_100","0,85h","1,2h",null,null,null,null,null,null,null,null,null,null,null,"2_стержня",0.999,"_1_стержень_099_от_30_до_100",4]
["1_стержень",0.9,"от 100 до 150",null,"_1_стержень_09_от_100_до_150","0,85h","[1,2 - 10-3(h - 100)]h",null,null,null,null,null,null,null,null,null,null,null,"2_троса",null,"_1_стержень_099_от_100_до_150",5]
["1_стержень",0.99,"от 0 до 30","_1_стержень_099","_1_стержень_099_от_0_до_30","0,8h","0,8h",null,null,null,null,null,null,null,null,null,null,null,null,null,"_2_стержня_09_от_0_до_100",6]
["1_стержень",0.99,"от 30 до 100",null,"_1_стержень_099_от_30_до_100","0,8h","[0,8 - 1,43×10-3(h - 30)]h",null,null,null,null,null,null,null,null,null,null,null,null,null,"_2_стержня_09_от_100_до_150",7]
["1_стержень",0.99,"от 100 до 150",null,"_1_стержень_099_от_100_до_150","[0,8 - 10-3(h - 100)]h","0,7h",null,null,null,null,null,null,null,null,null,null,null,null,null,"_2_стержня_099_от_0_до_30",8]
["1_стержень",0.999,"от 0 до 30","_1_стержень_0999","_1_стержень_0999_от_0_до_30","0,7h","0,6h",null,null,null,null,null,null,null,null,null,null,null,null,null,"_2_стержня_099_от_30_до_100",9]
["1_стержень",0.999,"от 30 до 100",null,"_1_стержень_0999_от_30_до_100","[0,7 - 7,14×10-4(h - 30)]h","[0,6 - 1,43×10-3(h - 30)]h",null,null,null,null,null,null,null,null,null,null,null,null,null,"_2_стержня_099_от_100_до_150",10]
["1_стержень",0.999,"от 100 до 150",null,"_1_стержень_0999_от_100_до_150","[0,65 - 10-3(h - 100)]h","[0,5 - 2×10-3(h - 100)]h",null,null,null,null,null,null,null,null,null,null,null,null,null,"_1_трос_09_от_0_до_150",11]
[null,"2_стержня",null,null,null,null,null,null,null,null,null,null,null,null,null,null,null,null,null,null,"_1_трос_099_от_0_до_30",12]
[null,"Надежность защиты Pз","Высота молниеотвода h, м",null,null,"Высота конуса h0, м","Радиус конуса r0, м","Lmax, м","Lc, м",null,null,null,null,null,null,null,null,null,null,null,"_1_трос_099_от_30_до_100",13]
[null,"Рз_надежность","h_высота_м",null,null,null,null,null,null,null,null,null,null,null,null,null,null,null,null,null,"_1_трос_099_от_100_до_150",14]
["2_стержня",0.9,"от 0 до 30","_2_стержня_09","_2_стержня_09_от_0_до_30","0,85h","1,2h","5,75h","2,5h",null,null,null,null,null,null,null,null,null,null,null,"_1_трос_0999_от_0_до_30",15]
["2_стержня",0.9,"от 30 до 100",null,"_2_стержня_09_от_30_до_100","0,85h","1,2h","[5,75 - 3,57×10-3(h - 30)]h","2,5h",null,null,null,null,null,null,null,null,null,null,null,"_1_трос_0999_от_30_до_100",16]
["2_стержня",0.9,"от 100 до 150",null,"_2_стержня_09_от_100_до_150","0,85h","[1,2 - 10-3(h - 100)]h","5,5h","2,5h",null,null,null,null,null,null,null,null,null,null,null,"_1_трос_0999_от_100_до_150",17]
["2_стержня",0.99,"от 0 до 30","_2_стержня_099","_2_стержня_099_от_0_до_30","0,8h","0,8h","4,75h","2,25h",null,null,null,null,null,null,null,null,null,null,null,"_2_троса_09_от_0_до_150",18]
["2_стержня",0.99,"от 30 до 100",null,"_2_стержня_099_от_30_до_100","0,8h","[0,8 - 1,43×10-3(h - 30)]h","[4,75 - 3,57×10-3(h - 30)]h","[2,25 - 0,0107(h - 30)]h",null,null,null,null,null,null,null,null,null,null,null,"_2_троса_099_от_0_до_30",19]
["2_стержня",0.99,"от 100 до 150",null,"_2_стержня_099_от_100_до_150","[0,8 - 10-3(h - 100)]h","0,7h","4,5h","1,5h",null,null,null,null,null,null,null,null,null,null,null,"_2_троса_099_от_30_до_100",20]
["2_стержня",0.999,"от 0 до 30","_2_стержня_0999","_2_стержня_0999_от_0_до_30","0,7h","0,6h","4,25h","2,25h",null,null,null,null,null,null,null,null,null,null,null,"_2_троса_099_от_100_до_150",21]
["2_стержня",0.999,"от 30 до 100",null,"_2_стержня_0999_от_30_до_100","[0,7 - 7,14×10-4(h - 30)]h","[0,6 - 1,43×10-3(h - 30)]h","[4,25 - 3,57×10-3(h - 30)]h","[2,25 - 0,0107(h - 30)]h",null,null,null,null,null,null,null,null,null,null,null,"_2_троса_0999_от_0_до_30",22]
["2_стержня",0.999,"от 100 до 150",null,"_2_стержня_0999_от_100_до_150","[0,65 - 10-3(h - 100)]h","[0,5 - 2×10-3(h - 100)]h","4,0h","1,5h",null,null,null,null,null,null,null,null,null,null,null,"_2_троса_0999_от_30_до_100",23]
[null,"1_трос",null,null,null,null,null,null,null,null,null,null,null,null,null,null,null,null,null,null,"_2_троса_0999_от_100_до_150",24]
[null,"Надежность защиты Pз","Высота молниеотвода h, м",null,null,"Высота конуса h0, м","Радиус конуса r0, м",null,null,null,null,null,null,null,null,null,null,null,null,null,null,25]
[null,"Рз_надежность","h_высота_м",null,null,null,null,null,null,null,null,null,null,null,null,null,null,null,null,null,null,26]
["1_трос",0.9,"от 0 до 150","_1_трос_09","_1_трос_09_от_0_до_150","0,87h","1,5h",null,null,null,null,null,null,null,null,null,null,null,null,null,null,27]
["1_трос",0.99,"от 0 до 30","_1_трос_099","_1_трос_099_от_0_до_30","0,8h","0,95h",null,null,null,null,null,null,null,null,null,null,null,null,null,null,28]
["1_трос",0.99,"от 30 до 100",null,"_1_трос_099_от_30_до_100","0,8h","[0,95 - 7,14×10-4(h - 30)]h",null,null,null,null,null,null,null,null,null,null,null,null,null,null,29]
["1_трос",0.99,"от 100 до 150",null,"_1_трос_099_от_100_до_150","0,8h","[0,9 - 10-3(h - 100)]h",null,null,null,null,null,null,null,null,null,null,null,null,null,null,30]
["1_трос",0.999,"от 0 до 30","_1_трос_0999","_1_трос_0999_от_0_до_30","0,75h","0,7h",null,null,null,null,null,null,null,null,null,null,null,null,null,null,31]
["1_трос",0.999,"от 30 до 100",null,"_1_трос_0999_от_30_до_100","[0,75 - 4,28×10-4(h - 30)]h","[0,7 - 1,43×10-3(h - 30)]h",null,null,null,null,null,null,null,null,null,null,null,null,null,null,32]
["1_трос",0.999,"от 100 до 150",null,"_1_трос_0999_от_100_до_150","[0,72 - 10-3(h - 100)]h","[0,6 - 10-3(h - 100)]h",null,null,null,null,null,null,null,null,null,null,null,null,null,null,33]
[null,"2_тросА",null,null,null,null,null,null,null,null,null,null,null,null,null,null,null,null,null,null,null,34]
[null,"Надежность защиты Pз","Высота молниеотвода h, м",null,null,"Высота конуса h0, м","Радиус конуса r0, м",null,null,null,null,null,null,null,null,null,null,null,null,null,null,35]
[null,"Рз_надежность","h_высота_м",null,null,null,null,"Lmax, м","Lc, м",null,null,null,null,null,null,null,null,null,null,null,null,36]
["2_троса",0.9,"от 0 до 150","_2_троса_09","_2_троса_09_от_0_до_150","0,87h","1,5h","6,0h","3,0h",null,null,null,null,null,null,null,null,null,null,null,null,37]
["2_троса",0.99,"от 0 до 30","_2_троса_099","_2_троса_099_от_0_до_30","0,8h","0,95h","5,0h","2,5h",null,null,null,null,null,null,null,null,null,null,null,null,38]
["2_троса",0.99,"от 30 до 100",null,"_2_троса_099_от_30_до_100","0,8h","[0,95 - 7,14×10-4(h - 30)]h","5,0h","[2,5 - 7,14×10-3(h - 30)]h",null,null,null,null,null,null,null,null,null,null,null,null,39]
["2_троса",0.99,"от 100 до 150",null,"_2_троса_099_от_100_до_150","0,8h","[0,9 - 10-3(h - 100)]h","[5,0 - 5×10-3(h - 100)]h","[2,0 - 5,0×10-3(h - 100)]h",null,null,null,null,null,null,null,null,null,null,null,null,40]
["2_троса",0.999,"от 0 до 30","_2_троса_0999","_2_троса_0999_от_0_до_30","0,75h","0,7h","4,75h","2,25h",null,null,null,null,null,null,null,null,null,null,null,null,41]
["2_троса",0.999,"от 30 до 100",null,"_2_троса_0999_от_30_до_100","[0,75 - 4,28×10-4(h - 30)]h","[0,7 - 1,43×10-3(h - 30)]h","[4,75 - 3,57×10-3(h - 30)]h","[2,25 - 3,57×10-3(h - 30)]h",null,null,null,null,null,null,null,null,null,null,null,null,42]
["2_троса",0.999,"от 100 до 150",null,"_2_троса_0999_от_100_до_150","[0,72 - 10-3(h - 100)]h","[0,6 - 10-3(h - 100)]h","[4,5 - 5×10-3(h - 100)]h","[2,0 - 5×10-3(h - 100)]h",null,null,null,null,null,null,null,null,null,null,null,null,43]
[null,null,null,null,null,null,null,null,null,null,null,null,null,null,null,null,null,null,null,null,null,44]
[null,null,null,null,null,null,null,null,null,null,null,null,null,null,null,null,null,null,null,null,null,45]
[null,null,null,null,null,null,null,null,null,null,null,null,null,null,null,null,null,null,null,null,null,46]
[null,null,null,null,null,null,null,null,null,null,null,null,null,null,null,null,null,null,null,null,null,47]
[null,null,null,null,null,null,null,null,null,null,null,null,null,null,null,null,null,null,null,null,null,48]
[null,null,null,null,null,null,null,null,null,null,null,null,null,null,null,null,null,null,null,null,null,49]
[null,null,null,null,null,null,null,null,null,null,null,null,null,null,null,null,null,null,null,null,null,50]
[null,null,null,null,null,null,null,null,null,null,null,null,null,null,null,null,null,null,null,null,null,51]
[null,null,null,null,null,null,null,null,null,null,null,null,null,null,null,null,null,null,null,null,null,52]
[null,null,null,null,null,null,null,null,null,null,null,null,null,null,null,null,null,null,null,null,null,53]
[null,null,null,null,null,null,null,null,null,null,null,null,null,null,null,null,null,null,null,null,null,54]
[null,null,null,null,null,null,null,null,null,null,null,null,null,null,null,null,null,null,null,null,null,55]
[null,null,null,null,null,null,null,null,null,null,null,null,null,null,null,null,null,null,null,null,null,56]
[null,null,null,null,null,null,null,null,null,null,null,null,null,null,null,null,null,null,null,null,null,57]
[null,null,null,null,null,null,null,null,null,null,null,null,null,null,null,null,null,null,null,null,null,58]
[null,null,null,null,null,null,null,null,null,null,null,null,null,null,null,null,null,null,null,null,null,59]
[null,null,null,null,null,null,null,null,null,null,null,null,null,null,null,null,null,null,null,null,null,60]
[null,null,null,null,null,null,null,null,null,null,null,null,null,null,null,null,null,null,null,null,null,61]
[null,null,null,null,null,null,null,null,null,null,null,null,null,null,null,null,null,null,null,null,null,62]
[null,null,null,null,null,null,null,null,null,null,null,null,null,null,null,null,null,null,null,null,null,63]
[null,null,null,null,null,null,null,null,null,null,null,null,null,null,null,null,null,null,null,null,null,64]
[null,null,null,null,null,null,null,null,null,null,null,null,null,null,null,null,null,null,null,null,null,65]
[null,null,null,null,null,null,null,null,null,null,null,null,null,null,null,null,null,null,null,null,null,66]
[null,null,null,null,null,null,null,null,null,null,null,null,null,null,null,null,null,null,null,null,null,67]
[null,null,null,null,null,null,null,null,null,null,null,null,null,null,null,null,null,null,null,null,null,68]
[null,null,null,null,null,null,null,null,null,null,null,null,null,null,null,null,null,null,null,null,null,69]
[null,null,null,null,null,null,null,null,null,null,null,null,null,null,null,null,null,null,null,null,null,70]
[null,null,null,null,null,null,null,null,null,null,null,null,null,null,null,null,null,null,null,null,null,71]
[null,null,null,null,null,null,null,null,null,null,null,null,null,null,null,null,null,null,null,null,null,72]
[null,null,null,null,null,null,null,null,null,null,null,null,null,null,null,null,null,null,null,null,null,73]
[null,null,null,null,null,null,null,null,null,null,null,null,null,null,null,null,null,null,null,null,null,74]
[null,null,null,null,null,null,null,null,null,null,null,null,null,null,null,null,null,null,null,null,null,75]
[null,null,null,null,null,null,null,null,null,null,null,null,null,null,null,null,null,null,null,null,null,76]
[null,null,null,null,null,null,null,null,null,null,null,null,null,null,null,null,null,null,null,null,null,77]
[null,null,null,null,null,null,null,null,null,null,null,null,null,null,null,null,null,null,null,null,null,78]
[null,null,null,null,null,null,null,null,null,null,null,null,null,null,null,null,null,null,null,null,null,79]
[null,null,null,null,null,null,null,null,null,null,null,null,null,null,null,null,null,null,null,null,null,80]
[null,null,null,null,null,null,null,null,null,null,null,null,null,null,null,null,null,null,null,null,null,81]
[null,null,null,null,null,null,null,null,null,null,null,null,null,null,null,null,null,null,null,null,null,82]
[null,null,null,null,null,null,null,null,null,null,null,null,null,null,null,null,null,null,null,null,null,83]
[null,null,null,null,null,null,null,null,null,null,null,null,null,null,null,null,null,null,null,null,null,84]
[null,null,null,null,null,null,null,null,null,null,null,null,null,null,null,null,null,null,null,null,null,85]
[null,null,null,null,null,null,null,null,null,null,null,null,null,null,null,null,null,null,null,null,null,86]
[null,null,null,null,null,null,null,null,null,null,null,null,null,null,null,null,null,null,null,null,null,87]
[null,null,null,null,null,null,null,null,null,null,null,null,null,null,null,null,null,null,null,null,null,88]
[null,null,null,null,null,null,null,null,null,null,null,null,null,null,null,null,null,null,null,null,null,89]
[null,null,null,null,null,null,null,null,null,null,null,null,null,null,null,null,null,null,null,null,null,90]
[null,null,null,null,null,null,null,null,null,null,null,null,null,null,null,null,null,null,null,null,null,91]
[null,null,null,null,null,null,null,null,null,null,null,null,null,null,null,null,null,null,null,null,null,92]
[null,null,null,null,null,null,null,null,null,null,null,null,null,null,null,null,null,null,null,null,null,93]
[null,null,null,null,null,null,null,null,null,null,null,null,null,null,null,null,null,null,null,null,null,94]
[null,null,null,null,null,null,null,null,null,null,null,null,null,null,null,null,null,null,null,null,null,95]
[null,null,null,null,null,null,null,null,null,null,null,null,null,null,null,null,null,null,null,null,null,96]
[null,null,null,null,null,null,null,null,null,null,null,null,null,null,null,null,null,null,null,null,null,97]
[null,null,null,null,null,null,null,null,null,null,null,null,null,null,null,null,null,null,null,null,null,98]
[null,null,null,null,null,null,null,null,null,null,null,null,null,null,null,null,null,null,null,null,null,99]
[null,null,null,null,null,null,null,null,null,null,null,null,null,null,null,null,null,null,null,null,null,100]
[null,null,null,null,null,null,null,null,null,null,null,null,null,null,null,null,null,null,null,null,null,101]
[null,null,null,null,null,null,null,null,null,null,null,null,null,null,null,null,null,null,null,null,null,102]
[null,null,null,null,null,null,null,null,null,null,null,null,null,null,null,null,null,null,null,null,null,103]
[null,null,null,null,null,null,null,null,null,null,null,null,null,null,null,null,null,null,null,null,null,104]
[null,null,null,null,null,null,null,null,null,null,null,null,null,null,null,null,null,null,null,null,null,105]
[null,null,null,null,null,null,null,null,null,null,null,null,null,null,null,null,null,null,null,null,null,106]
[null,null,null,null,null,null,null,null,null,null,null,null,null,null,null,null,null,null,null,null,null,107]
[null,null,null,null,null,null,null,null,null,null,null,null,null,null,null,null,null,null,null,null,null,108]
[null,null,null,null,null,null,null,null,null,null,null,null,null,null,null,null,null,null,null,null,null,109]
[null,null,null,null,null,null,null,null,null,null,null,null,null,null,null,null,null,null,null,null,null,110]
[null,null,null,null,null,null,null,null,null,null,null,null,null,null,null,null,null,null,null,null,null,111]
[null,null,null,null,null,null,null,null,null,null,null,null,null,null,null,null,null,null,null,null,null,112]
[null,null,null,null,null,null,null,null,null,null,null,null,null,null,null,null,null,null,null,null,null,113]
[null,null,null,null,null,null,null,null,null,null,null,null,null,null,null,null,null,null,null,null,null,114]
[null,null,null,null,null,null,null,null,null,null,null,null,null,null,null,null,null,null,null,null,null,115]
[null,null,null,null,null,null,null,null,null,null,null,null,null,null,null,null,null,null,null,null,null,116]
[null,null,null,null,null,null,null,null,null,null,null,null,null,null,null,null,null,null,null,null,null,117]
[null,null,null,null,null,null,null,null,null,null,null,null,null,null,null,null,null,null,null,null,null,118]
[null,null,null,null,null,null,null,null,null,null,null,null,null,null,null,null,null,null,null,null,null,119]
[null,null,null,null,null,null,null,null,null,null,null,null,null,null,null,null,null,null,null,null,null,120]
[null,null,null,null,null,null,null,null,null,null,null,null,null,null,null,null,null,null,null,null,null,121]
[null,null,null,null,null,null,null,null,null,null,null,null,null,null,null,null,null,null,null,null,null,122]
[null,null,null,null,null,null,null,null,null,null,null,null,null,null,null,null,null,null,null,null,null,123]
[null,null,null,null,null,null,null,null,null,null,null,null,null,null,null,null,null,null,null,null,null,124]
[null,null,null,null,null,null,null,null,null,null,null,null,null,null,null,null,null,null,null,null,null,125]
[null,null,null,null,null,null,null,null,null,null,null,null,null,null,null,null,null,null,null,null,null,126]
[null,null,null,null,null,null,null,null,null,null,null,null,null,null,null,null,null,null,null,null,null,127]
[null,null,null,null,null,null,null,null,null,null,null,null,null,null,null,null,null,null,null,null,null,128]
[null,null,null,null,null,null,null,null,null,null,null,null,null,null,null,null,null,null,null,null,null,129]
[null,null,null,null,null,null,null,null,null,null,null,null,null,null,null,null,null,null,null,null,null,130]
[null,null,null,null,null,null,null,null,null,null,null,null,null,null,null,null,null,null,null,null,null,131]
[null,null,null,null,null,null,null,null,null,null,null,null,null,null,null,null,null,null,null,null,null,132]
[null,null,null,null,null,null,null,null,null,null,null,null,null,null,null,null,null,null,null,null,null,133]
[null,null,null,null,null,null,null,null,null,null,null,null,null,null,null,null,null,null,null,null,null,134]
[null,null,null,null,null,null,null,null,null,null,null,null,null,null,null,null,null,null,null,null,null,135]
[null,null,null,null,null,null,null,null,null,null,null,null,null,null,null,null,null,null,null,null,null,136]
[null,null,null,null,null,null,null,null,null,null,null,null,null,null,null,null,null,null,null,null,null,137]
[null,null,null,null,null,null,null,null,null,null,null,null,null,null,null,null,null,null,null,null,null,138]
[null,null,null,null,null,null,null,null,null,null,null,null,null,null,null,null,null,null,null,null,null,139]
[null,null,null,null,null,null,null,null,null,null,null,null,null,null,null,null,null,null,null,null,null,140]
[null,null,null,null,null,null,null,null,null,null,null,null,null,null,null,null,null,null,null,null,null,141]
[null,null,null,null,null,null,null,null,null,null,null,null,null,null,null,null,null,null,null,null,null,142]
[null,null,null,null,null,null,null,null,null,null,null,null,null,null,null,null,null,null,null,null,null,143]
[null,null,null,null,null,null,null,null,null,null,null,null,null,null,null,null,null,null,null,null,null,144]
[null,null,null,null,null,null,null,null,null,null,null,null,null,null,null,null,null,null,null,null,null,145]
[null,null,null,null,null,null,null,null,null,null,null,null,null,null,null,null,null,null,null,null,null,146]
[null,null,null,null,null,null,null,null,null,null,null,null,null,null,null,null,null,null,null,null,null,147]
[null,null,null,null,null,null,null,null,null,null,null,null,null,null,null,null,null,null,null,null,null,148]
[null,null,null,null,null,null,null,null,null,null,null,null,null,null,null,null,null,null,null,null,null,149]
[null,null,null,null,null,null,null,null,null,null,null,null,null,null,null,null,null,null,null,null,null,150]

{"sheet":"БазаМЗ","index":2,"n_rows":150,"n_cols":24,"rows_kept":150,"cut":false,"hidden":true,"merged":[[49,5,51,5],[3,5,4,5],[5,5,7,5],[8,5,10,5],[14,5,16,5],[17,5,19,5],[20,5,22,5],[27,5,29,5],[30,5,32,5],[37,5,39,5],[40,5,42,5],[47,5,48,5],[81,5,83,5],[84,5,86,5],[52,5,54,5],[58,5,60,5],[61,5,63,5],[64,5,66,5],[71,5,73,5],[74,5,76,5]]}
[null,"1_стержень",null,null,null,null,null,null,null,null,null,null,null,null,null,null,null,null,null,"Имя блока","Вид защиты","Рз","_1_стержень_09_от_0_до_100",1]
[null,"Надежность защиты Pз","Высота молниеотвода h, м",null,null,null,null,"Высота конуса h0, м","Радиус конуса r0, м",null,null,null,null,null,null,null,null,null,null,"_ЭОМ_МЗ_1стержень_3D_ПоРасчету","1_стержень",0.9,"_1_стержень_09_от_100_до_150",2]
[null,"Рз_надежность","h_высота_м",null,null,null,null,null,null,null,null,null,null,null,null,null,null,null,null,"_ЭОМ_МЗ_1трос_3D_ПоРасчету","1_трос",0.99,"_1_стержень_099_от_0_до_30",3]
["1_стержень",0.9,"от 0 до 100",1,100,"_1_стержень_09","_1_стержень_09_от_0_до_100","h1*0,85","1,2*h1",null,null,null,null,null,null,null,null,null,null,"_ЭОМ_МЗ_2стержня_3D_ПоРасчету","2_стержня",0.999,"_1_стержень_099_от_30_до_100",4]
["1_стержень",0.9,"от 100 до 150",101,150,null,"_1_стержень_09_от_100_до_150","h1*0,85","(1,2-0,001*(h1-100))*h1",null,null,null,null,null,null,null,null,null,null,"_ЭОМ_МЗ_2троса_3D_ПоРасчету","2_троса",null,"_1_стержень_099_от_100_до_150",5]
["1_стержень",0.99,"от 0 до 30",1,30,"_1_стержень_099","_1_стержень_099_от_0_до_30","h1*0,8","0,8*h1",null,null,null,null,null,null,null,null,null,null,null,null,null,"_1_стержень_0999_от_0_до_30",6]
["1_стержень",0.99,"от 30 до 100",31,100,null,"_1_стержень_099_от_30_до_100","h1*0,8","(0,8-1,43*0,001*(h1-30))*h1",null,null,null,null,null,null,null,null,null,null,null,null,null,"_1_стержень_0999_от_30_до_100",7]
["1_стержень",0.99,"от 100 до 150",101,150,null,"_1_стержень_099_от_100_до_150","(0,8-0,001*(h1-100))*h1","0,7*h1",null,null,null,null,null,null,null,null,null,null,null,null,null,"_1_стержень_0999_от_100_до_150",8]
["1_стержень",0.999,"от 0 до 30",1,30,"_1_стержень_0999","_1_стержень_0999_от_0_до_30","0,7*h1","0,6*h1",null,null,null,null,null,null,null,null,null,null,null,null,null,"_2_стержня_09_от_0_до_30",9]
["1_стержень",0.999,"от 30 до 100",31,100,null,"_1_стержень_0999_от_30_до_100","(0,7-7,14*0,0001*(h1-30))*h1","(0,6-1,43*0,001*(h1-30))*h1",null,null,null,null,null,null,null,null,null,null,null,null,null,"_2_стержня_09_от_30_до_100",10]
["1_стержень",0.999,"от 100 до 150",101,150,null,"_1_стержень_0999_от_100_до_150","(0,65-0,001*(h1-100))*h1","(0,5-2*0,001*(h1-100))*h1",null,null,null,null,null,null,null,null,null,null,null,null,null,"_2_стержня_09_от_100_до_150",11]
[null,"2_стержня",null,null,null,null,null,null,null,null,null,null,null,null,null,null,null,null,null,null,null,null,"_2_стержня_099_от_0_до_30",12]
[null,"Надежность защиты Pз","Высота молниеотвода h, м",null,null,null,null,"Высота конуса h0, м","Радиус конуса r0, м","Lmax, м","Lc, м",null,null,null,null,null,null,null,null,null,null,null,"_2_стержня_099_от_30_до_100",13]
[null,"Рз_надежность","h_высота_м",null,null,null,null,null,null,null,null,null,null,null,null,null,null,null,null,null,null,null,"_2_стержня_099_от_100_до_150",14]
["2_стержня",0.9,"от 0 до 30",1,30,"_2_стержня_09","_2_стержня_09_от_0_до_30","0,85*h1","1,2*h1","5,75*h1","2,5*h1",null,null,null,null,null,null,null,null,null,null,null,"_2_стержня_0999_от_0_до_30",15]
["2_стержня",0.9,"от 30 до 100",31,100,null,"_2_стержня_09_от_30_до_100","0,85*h1","1,2*h1","(5,75-3,57*0,001*(h1-30))*h1","2,5*h1",null,null,null,null,null,null,null,null,null,null,null,"_2_стержня_0999_от_30_до_100",16]
["2_стержня",0.9,"от 100 до 150",101,150,null,"_2_стержня_09_от_100_до_150","0,85*h1","(1,2-0,001*(h1-100))*h1","5,5*h1","2,5*h1",null,null,null,null,null,null,null,null,null,null,null,"_2_стержня_0999_от_100_до_150",17]
["2_стержня",0.99,"от 0 до 30",1,30,"_2_стержня_099","_2_стержня_099_от_0_до_30","0,8*h1","0,8*h1","4,75*h1","2,25*h1",null,null,null,null,null,null,null,null,null,null,null,"_1_трос_09_от_0_до_150",18]
["2_стержня",0.99,"от 30 до 100",31,100,null,"_2_стержня_099_от_30_до_100","0,8*h1","(0,8-1,43*0,001*(h1-30))*h1","(4,75-3,57*0,001*(h1-30))*h1","(2,25-0,0107*(h1-30))*h1",null,null,null,null,null,null,null,null,null,null,null,"_1_трос_099_от_0_до_30",19]
["2_стержня",0.99,"от 100 до 150",101,150,null,"_2_стержня_099_от_100_до_150","(0,8-0,001*(h1-100))*h1","0,7*h1","4,5*h1","1,5*h1",null,null,null,null,null,null,null,null,null,null,null,"_1_трос_099_от_30_до_100",20]
["2_стержня",0.999,"от 0 до 30",1,30,"_2_стержня_0999","_2_стержня_0999_от_0_до_30","0,7*h1","0,6*h1","4,25*h1","2,25*h1",null,null,null,null,null,null,null,null,null,null,null,"_1_трос_099_от_100_до_150",21]
["2_стержня",0.999,"от 30 до 100",31,100,null,"_2_стержня_0999_от_30_до_100","(0,7-7,14*0,0001*(h1-30))*h1","(0,6-1,43*0,001*(h1-30))*h1","(4,25-3,57*0,001*(h1-30))*h1","(2,25-0,0107*(h1-30))*h1",null,null,null,null,null,null,null,null,null,null,null,"_1_трос_0999_от_0_до_30",22]
["2_стержня",0.999,"от 100 до 150",101,150,null,"_2_стержня_0999_от_100_до_150","(0,65-0,001*(h1-100))*h1","(0,5-2*0,001*(h1-100))*h1","4*h1","1,5*h1",null,null,null,null,null,null,null,null,null,null,null,"_1_трос_0999_от_30_до_100",23]
[null,"1_трос",null,null,null,null,null,null,null,null,null,null,null,null,null,null,null,null,null,null,null,null,"_1_трос_0999_от_100_до_150",24]
[null,"Надежность защиты Pз","Высота молниеотвода h, м",null,null,null,null,"Высота конуса h0, м","Радиус конуса r0, м",null,null,null,null,null,null,null,null,null,null,null,null,null,"_2_троса_09_от_0_до_150",25]
[null,"Рз_надежность","h_высота_м",null,null,null,null,null,null,null,null,null,null,null,null,null,null,null,null,null,null,null,"_2_троса_099_от_0_до_30",26]
["1_трос",0.9,"от 0 до 150",1,150,"_1_трос_09","_1_трос_09_от_0_до_150","0,87*h1","1,5*h1",null,null,null,null,null,null,null,null,null,null,null,null,null,"_2_троса_099_от_30_до_100",27]
["1_трос",0.99,"от 0 до 30",1,30,"_1_трос_099","_1_трос_099_от_0_до_30","0,8*h1","0,95*h1",null,null,null,null,null,null,null,null,null,null,null,null,null,"_2_троса_099_от_100_до_150",28]
["1_трос",0.99,"от 30 до 100",31,100,null,"_1_трос_099_от_30_до_100","0,8*h1","(0,95-7,14*0,0001*(h1-30))*h1",null,null,null,null,null,null,null,null,null,null,null,null,null,"_2_троса_0999_от_0_до_30",29]
["1_трос",0.99,"от 100 до 150",101,150,null,"_1_трос_099_от_100_до_150","0,8*h1","(0,9-0,001*(h1-100))*h1",null,null,null,null,null,null,null,null,null,null,null,null,null,"_2_троса_0999_от_30_до_100",30]
["1_трос",0.999,"от 0 до 30",1,30,"_1_трос_0999","_1_трос_0999_от_0_до_30","0,75*h1","0,7*h1",null,null,null,null,null,null,null,null,null,null,null,null,null,"_2_троса_0999_от_100_до_150",31]
["1_трос",0.999,"от 30 до 100",31,100,null,"_1_трос_0999_от_30_до_100","(0,75-4,28*0,0001*(h1-30))*h1","(0,7-1,43*0,001*(h1-30))*h1",null,null,null,null,null,null,null,null,null,null,null,null,null,null,32]
["1_трос",0.999,"от 100 до 150",101,150,null,"_1_трос_0999_от_100_до_150","(0,72-0,001*(h1-100))*h1","(0,6-0,001*(h1-100))*h1",null,null,null,null,null,null,null,null,null,null,null,null,null,null,33]
[null,"2_тросА",null,null,null,null,null,null,null,null,null,null,null,null,null,null,null,null,null,null,null,null,null,34]
[null,"Надежность защиты Pз","Высота молниеотвода h, м",null,null,null,null,"Высота конуса h0, м","Радиус конуса r0, м",null,null,null,null,null,null,null,null,null,null,null,null,null,null,35]
[null,"Рз_надежность","h_высота_м",null,null,null,null,null,null,"Lmax, м","Lc, м",null,null,null,null,null,null,null,null,null,null,null,null,36]
["2_троса",0.9,"от 0 до 150",1,150,"_2_троса_09","_2_троса_09_от_0_до_150","0,87*h1","1,5*h1","6*h1","3*h1",null,null,null,null,null,null,null,null,null,null,null,null,37]
["2_троса",0.99,"от 0 до 30",1,30,"_2_троса_099","_2_троса_099_от_0_до_30","0,8*h1","0,95*h1","5*h1","2,5*h1",null,null,null,null,null,null,null,null,null,null,null,null,38]
["2_троса",0.99,"от 30 до 100",31,100,null,"_2_троса_099_от_30_до_100","0,8*h1","(0,95-7,14*0,0001*(h1-30))*h1","5*h1","(2,5-7,14*0,001*(h1-30))*h1",null,null,null,null,null,null,null,null,null,null,null,null,39]
["2_троса",0.99,"от 100 до 150",101,150,null,"_2_троса_099_от_100_до_150","0,8*h1","(0,9-0,001*(h1-100))*h1","(5-5*0,001*(h1-100))*h1","(2-5*0,001*(h1-100))*h1",null,null,null,null,null,null,null,null,null,null,null,null,40]
["2_троса",0.999,"от 0 до 30",1,30,"_2_троса_0999","_2_троса_0999_от_0_до_30","0,75*h1","0,7*h1","4,75*h1","2,25*h1",null,null,null,null,null,null,null,null,null,null,null,null,41]
["2_троса",0.999,"от 30 до 100",31,100,null,"_2_троса_0999_от_30_до_100","(0,75-4,28*0,0001*(h1-30))*h1","(0,7-1,43*0,001*(h1-30))*h1","(4,75-3,57*0,001*(h1-30))*h1","(2,25-3,57*0,001*(h1-30))*h1",null,null,null,null,null,null,null,null,null,null,null,null,42]
["2_троса",0.999,"от 100 до 150",101,150,null,"_2_троса_0999_от_100_до_150","(0,72-0,001*(h1-100))*h1","(0,6-0,001*(h1-100))*h1","(4,5-5*0,001*(h1-100))*h1","(2-5*0,001*(h1-100))*h1",null,null,null,null,null,null,null,null,null,null,null,null,43]
[null,null,null,null,null,null,null,null,null,null,null,null,null,null,null,null,null,null,null,null,null,null,null,44]
[null,"1_стержень",null,null,null,null,null,null,null,null,null,null,null,null,null,null,null,null,null,null,null,null,null,45]
[null,"Надежность защиты Pз","Высота молниеотвода h, м",null,null,null,null,"Высота конуса h0, м","Радиус конуса r0, м",null,null,null,null,null,null,null,null,null,null,null,null,null,null,46]
[null,"Рз_надежность","h_высота_м",null,null,null,null,null,null,null,null,null,null,null,null,null,null,null,null,null,null,null,null,47]
["1_стержень",0.9,"от 0 до 100",1,100,"_1_стержень_09","_1_стержень_09_от_0_до_100","h2*0,85","1,2*h2",null,null,null,null,null,null,null,null,null,null,null,null,null,null,48]
["1_стержень",0.9,"от 100 до 150",101,150,null,"_1_стержень_09_от_100_до_150","h2*0,85","(1,2 - 0,001*(h2 - 100))*h2",null,null,null,null,null,null,null,null,null,null,null,null,null,null,49]
["1_стержень",0.99,"от 0 до 30",1,30,"_1_стержень_099","_1_стержень_099_от_0_до_30","h2*0,8","0,8*h2",null,null,null,null,null,null,null,null,null,null,null,null,null,null,50]
["1_стержень",0.99,"от 30 до 100",31,100,null,"_1_стержень_099_от_30_до_100","h2*0,8","(0,8 - 1,43*0,001*(h2 - 30))*h2",null,null,null,null,null,null,null,null,null,null,null,null,null,null,51]
["1_стержень",0.99,"от 100 до 150",101,150,null,"_1_стержень_099_от_100_до_150","(0,8 - 0,001*(h2- 100))*h2","0,7*h2",null,null,null,null,null,null,null,null,null,null,null,null,null,null,52]
["1_стержень",0.999,"от 0 до 30",1,30,"_1_стержень_0999","_1_стержень_0999_от_0_до_30","0,7*h2","0,6*h2",null,null,null,null,null,null,null,null,null,null,null,null,null,null,53]
["1_стержень",0.999,"от 30 до 100",31,100,null,"_1_стержень_0999_от_30_до_100","(0,7 - 7,14*0,0001*(h2 - 30))*h2","(0,6 - 1,43*0,001*(h2 - 30))*h2",null,null,null,null,null,null,null,null,null,null,null,null,null,null,54]
["1_стержень",0.999,"от 100 до 150",101,150,null,"_1_стержень_0999_от_100_до_150","(0,65 - 0,001*(h2 - 100))*h2","(0,5 - 2*0,001*(h2 - 100))*h2",null,null,null,null,null,null,null,null,null,null,null,null,null,null,55]
[null,"2_стержня",null,null,null,null,null,null,null,null,null,null,null,null,null,null,null,null,null,null,null,null,null,56]
[null,"Надежность защиты Pз","Высота молниеотвода h, м",null,null,null,null,"Высота конуса h0, м","Радиус конуса r0, м","Lmax, м","Lc, м",null,null,null,null,null,null,null,null,null,null,null,null,57]
[null,"Рз_надежность","h_высота_м",null,null,null,null,null,null,null,null,null,null,null,null,null,null,null,null,null,null,null,null,58]
["2_стержня",0.9,"от 0 до 30",1,30,"_2_стержня_09","_2_стержня_09_от_0_до_30","0,85*h2","1,2*h2","5,75*h2","2,5*h2",null,null,null,null,null,null,null,null,null,null,null,null,59]
["2_стержня",0.9,"от 30 до 100",31,100,null,"_2_стержня_09_от_30_до_100","0,85*h2","1,2*h2","(5,75 - 3,57*0,001*(h2 - 30))*h2","2,5*h2",null,null,null,null,null,null,null,null,null,null,null,null,60]
["2_стержня",0.9,"от 100 до 150",101,150,null,"_2_стержня_09_от_100_до_150","0,85*h2","(1,2 - 0,001*(h2 - 100))*h2","5,5*h2","2,5*h2",null,null,null,null,null,null,null,null,null,null,null,null,61]
["2_стержня",0.99,"от 0 до 30",1,30,"_2_стержня_099","_2_стержня_099_от_0_до_30","0,8*h2","0,8*h2","4,75*h2","2,25*h2",null,null,null,null,null,null,null,null,null,null,null,null,62]
["2_стержня",0.99,"от 30 до 100",31,100,null,"_2_стержня_099_от_30_до_100","0,8*h2","(0,8 - 1,43*0,001*(h2 - 30))*h2","(4,75 - 3,57*0,001*(h2 - 30))*h2","(2,25 - 0,0107*(h2 - 30))*h2",null,null,null,null,null,null,null,null,null,null,null,null,63]
["2_стержня",0.99,"от 100 до 150",101,150,null,"_2_стержня_099_от_100_до_150","(0,8 - 0,001*(h2 - 100))*h2","0,7*h2","4,5*h2","1,5*h2",null,null,null,null,null,null,null,null,null,null,null,null,64]
["2_стержня",0.999,"от 0 до 30",1,30,"_2_стержня_0999","_2_стержня_0999_от_0_до_30","0,7*h2","0,6*h2","4,25*h2","2,25*h2",null,null,null,null,null,null,null,null,null,null,null,null,65]
["2_стержня",0.999,"от 30 до 100",31,100,null,"_2_стержня_0999_от_30_до_100","(0,7 - 7,14*0,0001*(h2 - 30))*h2","(0,6 - 1,43*0,001*(h2 - 30))*h2","(4,25 - 3,57*0,001*(h2 - 30))*h2","(2,25 - 0,0107*(h2 - 30))*h2",null,null,null,null,null,null,null,null,null,null,null,null,66]
["2_стержня",0.999,"от 100 до 150",101,150,null,"_2_стержня_0999_от_100_до_150","(0,65 - 0,001*(h2 - 100))*h2","(0,5 - 2*0,001*(h2 - 100))*h2","4*h2","1,5*h2",null,null,null,null,null,null,null,null,null,null,null,null,67]
[null,"1_трос",null,null,null,null,null,null,null,null,null,null,null,null,null,null,null,null,null,null,null,null,null,68]
[null,"Надежность защиты Pз","Высота молниеотвода h, м",null,null,null,null,"Высота конуса h0, м","Радиус конуса r0, м",null,null,null,null,null,null,null,null,null,null,null,null,null,null,69]
[null,"Рз_надежность","h_высота_м",null,null,null,null,null,null,null,null,null,null,null,null,null,null,null,null,null,null,null,null,70]
["1_трос",0.9,"от 0 до 150",1,150,"_1_трос_09","_1_трос_09_от_0_до_150","0,87*h2","1,5*h2",null,null,null,null,null,null,null,null,null,null,null,null,null,null,71]
["1_трос",0.99,"от 0 до 30",1,30,"_1_трос_099","_1_трос_099_от_0_до_30","0,8*h2","0,95*h2",null,null,null,null,null,null,null,null,null,null,null,null,null,null,72]
["1_трос",0.99,"от 30 до 100",31,100,null,"_1_трос_099_от_30_до_100","0,8*h2","(0,95 - 7,14*0,0001*(h2 - 30))*h2",null,null,null,null,null,null,null,null,null,null,null,null,null,null,73]
["1_трос",0.99,"от 100 до 150",101,150,null,"_1_трос_099_от_100_до_150","0,8*h2","(0,9 - 0,001*(h2 - 100))*h2",null,null,null,null,null,null,null,null,null,null,null,null,null,null,74]
["1_трос",0.999,"от 0 до 30",1,30,"_1_трос_0999","_1_трос_0999_от_0_до_30","0,75*h2","0,7*h2",null,null,null,null,null,null,null,null,null,null,null,null,null,null,75]
["1_трос",0.999,"от 30 до 100",31,100,null,"_1_трос_0999_от_30_до_100","(0,75 - 4,28*0,0001*(h2 - 30))*h2","(0,7 - 1,43*0,001*(h2 - 30))*h2",null,null,null,null,null,null,null,null,null,null,null,null,null,null,76]
["1_трос",0.999,"от 100 до 150",101,150,null,"_1_трос_0999_от_100_до_150","(0,72 - 0,001*(h2 - 100))*h2","(0,6 - 0,001*(h2 - 100))*h2",null,null,null,null,null,null,null,null,null,null,null,null,null,null,77]
[null,"2_тросА",null,null,null,null,null,null,null,null,null,null,null,null,null,null,null,null,null,null,null,null,null,78]
[null,"Надежность защиты Pз","Высота молниеотвода h, м",null,null,null,null,"Высота конуса h0, м","Радиус конуса r0, м",null,null,null,null,null,null,null,null,null,null,null,null,null,null,79]
[null,"Рз_надежность","h_высота_м",null,null,null,null,null,null,"Lmax, м","Lc, м",null,null,null,null,null,null,null,null,null,null,null,null,80]
["2_троса",0.9,"от 0 до 150",1,150,"_2_троса_09","_2_троса_09_от_0_до_150","0,87*h2","1,5*h2","6*h2","3*h2",null,null,null,null,null,null,null,null,null,null,null,null,81]
["2_троса",0.99,"от 0 до 30",1,30,"_2_троса_099","_2_троса_099_от_0_до_30","0,8*h2","0,95*h2","5*h2","2,5*h2",null,null,null,null,null,null,null,null,null,null,null,null,82]
["2_троса",0.99,"от 30 до 100",31,100,null,"_2_троса_099_от_30_до_100","0,8*h2","(0,95 - 7,14*0,0001*(h2 - 30))*h2","5*h2","(2,5 - 7,14*0,001*(h2 - 30))*h2",null,null,null,null,null,null,null,null,null,null,null,null,83]
["2_троса",0.99,"от 100 до 150",101,150,null,"_2_троса_099_от_100_до_150","0,8*h2","(0,9 - 0,001*(h2 - 100))*h2","(5 - 5*0,001*(h2 - 100))*h2","(2 - 5*0,001*(h2 - 100))*h2",null,null,null,null,null,null,null,null,null,null,null,null,84]
["2_троса",0.999,"от 0 до 30",1,30,"_2_троса_0999","_2_троса_0999_от_0_до_30","0,75*h2","0,7*h2","4,75*h2","2,25*h2",null,null,null,null,null,null,null,null,null,null,null,null,85]
["2_троса",0.999,"от 30 до 100",31,100,null,"_2_троса_0999_от_30_до_100","(0,75 - 4,28*0,0001*(h2 - 30))*h2","(0,7 - 1,43*0,001*(h2 - 30))*h2","(4,75 - 3,57*0,001*(h2 - 30))*h2","(2,25 - 3,57*0,001*(h2 - 30))*h2",null,null,null,null,null,null,null,null,null,null,null,null,86]
["2_троса",0.999,"от 100 до 150",101,150,null,"_2_троса_0999_от_100_до_150","(0,72 - 0,001*(h2 - 100))*h2","(0,6 - 0,001*(h2 - 100))*h2","(4,5 - 5*0,001*(h2 - 100))*h2","(2 - 5*0,001*(h2 - 100))*h2",null,null,null,null,null,null,null,null,null,null,null,null,87]
[null,null,null,null,null,null,null,null,null,null,null,null,null,null,null,null,null,null,null,null,null,null,null,88]
[null,null,null,null,null,null,null,null,null,null,null,null,null,null,null,null,null,null,null,null,null,null,null,89]
[null,null,null,null,null,null,null,null,null,null,null,null,null,null,null,null,null,null,null,null,null,null,null,90]
[null,null,null,null,null,null,null,null,null,null,null,null,null,null,null,null,null,null,null,null,null,null,null,91]
[null,null,null,null,null,null,null,null,null,null,null,null,null,null,null,null,null,null,null,null,null,null,null,92]
[null,null,null,null,null,null,null,null,null,null,null,null,null,null,null,null,null,null,null,null,null,null,null,93]
[null,null,null,null,null,null,null,null,null,null,null,null,null,null,null,null,null,null,null,null,null,null,null,94]
[null,null,null,null,null,null,null,null,null,null,null,null,null,null,null,null,null,null,null,null,null,null,null,95]
[null,null,null,null,null,null,null,null,null,null,null,null,null,null,null,null,null,null,null,null,null,null,null,96]
[null,null,null,null,null,null,null,null,null,null,null,null,null,null,null,null,null,null,null,null,null,null,null,97]
[null,null,null,null,null,null,null,null,null,null,null,null,null,null,null,null,null,null,null,null,null,null,null,98]
[null,null,null,null,null,null,null,null,null,null,null,null,null,null,null,null,null,null,null,null,null,null,null,99]
[null,null,null,null,null,null,null,null,null,null,null,null,null,null,null,null,null,null,null,null,null,null,null,100]
[null,null,null,null,null,null,null,null,null,null,null,null,null,null,null,null,null,null,null,null,null,null,null,101]
[null,null,null,null,null,null,null,null,null,null,null,null,null,null,null,null,null,null,null,null,null,null,null,102]
[null,null,null,null,null,null,null,null,null,null,null,null,null,null,null,null,null,null,null,null,null,null,null,103]
[null,null,null,null,null,null,null,null,null,null,null,null,null,null,null,null,null,null,null,null,null,null,null,104]
[null,null,null,null,null,null,null,null,null,null,null,null,null,null,null,null,null,null,null,null,null,null,null,105]
[null,null,null,null,null,null,null,null,null,null,null,null,null,null,null,null,null,null,null,null,null,null,null,106]
[null,null,null,null,null,null,null,null,null,null,null,null,null,null,null,null,null,null,null,null,null,null,null,107]
[null,null,null,null,null,null,null,null,null,null,null,null,null,null,null,null,null,null,null,null,null,null,null,108]
[null,null,null,null,null,null,null,null,null,null,null,null,null,null,null,null,null,null,null,null,null,null,null,109]
[null,null,null,null,null,null,null,null,null,null,null,null,null,null,null,null,null,null,null,null,null,null,null,110]
[null,null,null,null,null,null,null,null,null,null,null,null,null,null,null,null,null,null,null,null,null,null,null,111]
[null,null,null,null,null,null,null,null,null,null,null,null,null,null,null,null,null,null,null,null,null,null,null,112]
[null,null,null,null,null,null,null,null,null,null,null,null,null,null,null,null,null,null,null,null,null,null,null,113]
[null,null,null,null,null,null,null,null,null,null,null,null,null,null,null,null,null,null,null,null,null,null,null,114]
[null,null,null,null,null,null,null,null,null,null,null,null,null,null,null,null,null,null,null,null,null,null,null,115]
[null,null,null,null,null,null,null,null,null,null,null,null,null,null,null,null,null,null,null,null,null,null,null,116]
[null,null,null,null,null,null,null,null,null,null,null,null,null,null,null,null,null,null,null,null,null,null,null,117]
[null,null,null,null,null,null,null,null,null,null,null,null,null,null,null,null,null,null,null,null,null,null,null,118]
[null,null,null,null,null,null,null,null,null,null,null,null,null,null,null,null,null,null,null,null,null,null,null,119]
[null,null,null,null,null,null,null,null,null,null,null,null,null,null,null,null,null,null,null,null,null,null,null,120]
[null,null,null,null,null,null,null,null,null,null,null,null,null,null,null,null,null,null,null,null,null,null,null,121]
[null,null,null,null,null,null,null,null,null,null,null,null,null,null,null,null,null,null,null,null,null,null,null,122]
[null,null,null,null,null,null,null,null,null,null,null,null,null,null,null,null,null,null,null,null,null,null,null,123]
[null,null,null,null,null,null,null,null,null,null,null,null,null,null,null,null,null,null,null,null,null,null,null,124]
[null,null,null,null,null,null,null,null,null,null,null,null,null,null,null,null,null,null,null,null,null,null,null,125]
[null,null,null,null,null,null,null,null,null,null,null,null,null,null,null,null,null,null,null,null,null,null,null,126]
[null,null,null,null,null,null,null,null,null,null,null,null,null,null,null,null,null,null,null,null,null,null,null,127]
[null,null,null,null,null,null,null,null,null,null,null,null,null,null,null,null,null,null,null,null,null,null,null,128]
[null,null,null,null,null,null,null,null,null,null,null,null,null,null,null,null,null,null,null,null,null,null,null,129]
[null,null,null,null,null,null,null,null,null,null,null,null,null,null,null,null,null,null,null,null,null,null,null,130]
[null,null,null,null,null,null,null,null,null,null,null,null,null,null,null,null,null,null,null,null,null,null,null,131]
[null,null,null,null,null,null,null,null,null,null,null,null,null,null,null,null,null,null,null,null,null,null,null,132]
[null,null,null,null,null,null,null,null,null,null,null,null,null,null,null,null,null,null,null,null,null,null,null,133]
[null,null,null,null,null,null,null,null,null,null,null,null,null,null,null,null,null,null,null,null,null,null,null,134]
[null,null,null,null,null,null,null,null,null,null,null,null,null,null,null,null,null,null,null,null,null,null,null,135]
[null,null,null,null,null,null,null,null,null,null,null,null,null,null,null,null,null,null,null,null,null,null,null,136]
[null,null,null,null,null,null,null,null,null,null,null,null,null,null,null,null,null,null,null,null,null,null,null,137]
[null,null,null,null,null,null,null,null,null,null,null,null,null,null,null,null,null,null,null,null,null,null,null,138]
[null,null,null,null,null,null,null,null,null,null,null,null,null,null,null,null,null,null,null,null,null,null,null,139]
[null,null,null,null,null,null,null,null,null,null,null,null,null,null,null,null,null,null,null,null,null,null,null,140]
[null,null,null,null,null,null,null,null,null,null,null,null,null,null,null,null,null,null,null,null,null,null,null,141]
[null,null,null,null,null,null,null,null,null,null,null,null,null,null,null,null,null,null,null,null,null,null,null,142]
[null,null,null,null,null,null,null,null,null,null,null,null,null,null,null,null,null,null,null,null,null,null,null,143]
[null,null,null,null,null,null,null,null,null,null,null,null,null,null,null,null,null,null,null,null,null,null,null,144]
[null,null,null,null,null,null,null,null,null,null,null,null,null,null,null,null,null,null,null,null,null,null,null,145]
[null,null,null,null,null,null,null,null,null,null,null,null,null,null,null,null,null,null,null,null,null,null,null,146]
[null,null,null,null,null,null,null,null,null,null,null,null,null,null,null,null,null,null,null,null,null,null,null,147]
[null,null,null,null,null,null,null,null,null,null,null,null,null,null,null,null,null,null,null,null,null,null,null,148]
[null,null,null,null,null,null,null,null,null,null,null,null,null,null,null,null,null,null,null,null,null,null,null,149]
[null,null,null,null,null,null,null,null,null,null,null,null,null,null,null,null,null,null,null,null,null,null,null,150]